bitfinex/quotes_SOLUSD_20251103
["timestamp","ask_amount","ask_price","bid_price","bid_amount"]
[1762185591299,18.39963467,167.14,166.83,55.99412575]
[1762185591300,7.69214303,167.0,166.83,55.99412575]
[1762185591494,28.28414303,167.04,166.83,55.99412575]
[1762185591495,7.69214303,166.97,166.95,0.14216157]
[1762185591704,7.69214303,166.96,166.83,70.97944014]
[1762185591889,7.69214303,166.91,166.84,0.7]
[1762185592088,7.69214303,166.92,166.84,0.7]
[1762185592405,7.69214303,166.93,166.85,20.592]
[1762185592583,20.592,167.01,166.84,0.7]
[1762185592584,7.69214303,166.92,166.84,0.7]
[1762185592784,7.69214303,166.92,166.85,9.78882769]
[1762185593206,7.69214303,166.92,166.84,0.7]
[1762185593207,0.06,167.07,166.9,9.78882769]
[1762185593430,7.69214303,167.03,166.93,0.14216157]
[1762185593916,7.69214303,167.03,166.95,9.93098926]
[1762185594090,7.69214303,167.03,166.97,9.93098926]
[1762185594490,0.06,167.09,166.99,9.93098926]
[1762185594806,7.69214303,167.04,166.99,9.93098926]
[1762185595106,7.69214303,167.06,167.01,9.93098926]
[1762185595319,7.69214303,167.02,166.98,9.93098926]
[1762185595606,7.69214303,167.03,166.98,10.63098926]
[1762185595805,7.69214303,167.04,167.0,9.93098926]
[1762185596195,7.69214303,167.03,167.0,10.63098926]
[1762185596392,7.69214303,167.01,166.99,0.7]
[1762185596711,20.592,167.07,166.89,14.9790884]
[1762185596712,7.69214303,167.0,166.96,0.7]
[1762185596887,20.592,167.03,166.91,0.7]
[1762185597303,7.69214303,167.0,166.92,9.78882769]
[1762185597501,7.69214303,167.01,166.94,20.592]
[1762185597695,7.69214303,167.01,166.93,0.7]
[1762185597884,7.69214303,167.02,166.94,9.78882769]
[1762185598092,7.69214303,167.01,166.95,0.14216157]
[1762185598395,4.98026819,167.0,166.95,0.84216157]
[1762185598704,4.98026819,167.01,166.95,0.84216157]
[1762185598903,4.98026819,167.0,166.95,0.84216157]
[1762185599118,4.98026819,166.97,166.95,0.84216157]
[1762185599316,4.98026819,166.98,166.95,0.84216157]
[1762185599623,4.98026819,166.99,166.95,0.84216157]
[1762185599794,4.98026819,167.02,166.95,0.84216157]
[1762185599990,0.06,167.09,166.95,0.84216157]
[1762185600313,23.05063569,167.2,166.95,0.84216157]
[1762185600314,3.12956293,167.2,166.97,20.592]
[1762185600622,4.98026819,167.05,166.98,9.93098926]
[1762185600800,4.98026819,167.1,166.98,9.93098926]
[1762185600996,4.98026819,167.05,166.98,9.93098926]
[1762185601200,4.98026819,167.06,167.01,20.592]
[1762185601419,4.98026819,167.07,167.01,20.592]
[1762185601710,20.592,167.13,167.02,0.7]
[1762185601915,20.592,167.13,167.01,20.592]
[1762185601916,0.06,167.12,167.01,20.592]
[1762185602287,20.592,167.09,167.01,20.592]
[1762185602484,20.592,167.07,167.01,0.71]
[1762185602694,4.98026819,167.02,166.98,10.49882769]
[1762185602903,20.592,167.07,166.98,10.49882769]
[1762185602904,4.98026819,166.99,166.98,9.78882769]
[1762185603087,4.98026819,167.1,166.99,0.71]
[1762185603293,0.06,167.17,167.02,0.14216157]
[1762185603500,0.06,167.17,167.02,20.73416157]
[1762185603697,0.06,167.17,167.04,0.14216157]
[1762185603901,22.65199999,167.17,167.01,9.78882769]
[1762185604108,1.99999999,167.14,167.0,0.71]
[1762185604307,4.98026819,167.01,166.97,0.71]
[1762185604513,4.98026819,167.02,166.97,0.71]
[1762185604810,5.01009113,167.15,167.02,9.78882769]
[1762185605009,4.98026819,167.2,167.1,9.93098926]
[1762185605215,4.98026819,167.2,167.05,20.592]
[1762185605216,4.98026819,167.11,167.03,6.69687791]
[1762185605397,4.98026819,167.11,167.07,9.93098926]
[1762185605595,4.98026819,167.13,167.07,9.93098926]
[1762185605816,4.98026819,167.11,167.09,0.14216157]
[1762185606023,4.98026819,167.2,167.09,9.93098926]
[1762185606187,4.98026819,167.14,167.1,0.71]
[1762185606389,4.98026819,167.2,167.1,0.71]
[1762185606390,4.98026819,167.15,167.11,0.14216157]
[1762185606607,0.2,167.23,167.13,9.93098926]
[1762185606808,4.98026819,167.14,167.13,9.93098926]
[1762185607015,9.96053638,167.14,167.04,0.71]
[1762185607292,4.98026819,167.05,167.01,0.71]
[1762185607523,25.57226819,167.1,166.95,0.71]
[1762185607726,4.98026819,167.02,166.97,20.592]
[1762185607913,20.592,167.06,166.96,0.71]
[1762185608229,20.592,167.06,166.86,0.71]
[1762185608230,4.98026819,166.97,166.86,0.71]
[1762185608388,4.98026819,167.0,166.86,0.71]
[1762185608595,1.99999999,167.04,166.86,0.71]
[1762185608804,4.98026819,166.95,166.86,0.71]
[1762185609001,4.98026819,166.88,166.86,0.71]
[1762185609301,20.592,166.96,166.86,0.71]
[1762185609600,4.98026819,166.94,166.86,50.71]
[1762185609807,4.98026819,166.89,166.88,9.78882769]
[1762185610209,4.98026819,166.89,166.88,0.71]
[1762185610616,4.98026819,166.91,166.88,10.49882769]
[1762185610933,4.98026819,166.95,166.89,9.78882769]
[1762185611123,4.98026819,166.93,166.89,0.85216157]
[1762185611308,4.98026819,166.93,166.92,0.14216157]
[1762185611626,9.93098926,167.08,166.92,0.14216157]
[1762185611627,4.98026819,166.98,166.93,9.78882769]
[1762185611831,4.98026819,167.0,166.94,0.14216157]
[1762185612027,4.98026819,167.01,166.95,9.78882769]
[1762185612247,5.98157674,167.18,166.99,9.93098926]
[1762185612421,4.98026819,167.07,167.04,0.14216157]
[1762185612735,0.06,167.15,167.0,0.71]
[1762185612736,4.98026819,167.05,167.01,9.93098926]
[1762185612938,0.06,167.15,167.01,0.85216157]
[1762185613231,4.98026819,167.02,167.01,0.14216157]
[1762185613439,4.98026819,167.02,166.98,0.14216157]
[1762185613615,4.98026819,167.02,166.89,50.0]
[1762185613616,4.98026819,166.99,166.96,0.14216157]
[1762185613810,4.98026819,167.01,166.96,9.93098926]
[1762185614019,4.98026819,167.05,166.96,10.64098926]
[1762185614239,4.98026819,167.08,166.99,9.93098926]
[1762185614532,4.98026819,167.05,166.99,9.93098926]
[1762185614835,4.98026819,167.07,167.01,9.93098926]
[1762185615337,4.98026819,167.03,167.01,0.14216157]
[1762185615634,4.98026819,167.03,166.92,50.0]
[1762185615635,9.96053638,167.02,166.91,0.71]
[1762185615817,5.98626659,167.05,166.91,0.71]
[1762185615818,4.98026819,166.92,166.91,0.71]
[1762185616844,4.98026819,166.93,166.92,9.78882769]
[1762185617045,4.98026819,166.93,166.87,20.592]
[1762185617341,20.592,167.04,166.88,6.70217375]
[1762185617548,4.98026819,166.96,166.92,9.93098926]
[1762185617849,4.98026819,166.95,166.92,9.93098926]
[1762185618144,4.98026819,166.94,166.92,0.85216157]
[1762185618458,4.98026819,167.0,166.81,50.2]
[1762185618459,4.98026819,166.93,166.81,50.2]
[1762185618734,4.98026819,166.84,166.82,0.71]
[1762185618935,4.98026819,166.84,166.81,0.2]
[1762185618936,4.98026819,166.9,166.81,0.2]
[1762185619139,4.98026819,166.82,166.81,0.2]
[1762185619322,4.98026819,166.9,166.81,0.2]
[1762185619525,4.98026819,166.82,166.81,0.2]
[1762185619729,9.96053638,166.82,166.76,0.2]
[1762185619925,9.96053638,166.82,166.69,0.1]
[1762185619926,4.98026819,166.77,166.7,0.71]
[1762185620127,4.98026819,166.71,166.7,0.71]
[1762185620328,0.06,166.87,166.7,0.71]
[1762185620645,6.98026818,166.9,166.7,0.71]
[1762185620646,4.98026819,166.75,166.7,0.71]
[1762185620840,4.98026819,166.8,166.7,0.71]
[1762185620841,4.98026819,166.74,166.7,0.71]
[1762185621017,0.06,166.88,166.71,50.0]
[1762185621222,4.98026819,166.74,166.7,0.71]
[1762185621736,4.98026819,166.8,166.71,9.78882769]
[1762185622043,4.98026819,166.8,166.7,0.71]
[1762185622044,4.98026819,166.72,166.7,0.71]
[1762185622551,4.98026819,166.74,166.71,9.78882769]
[1762185622855,0.06,166.84,166.71,30.38082769]
[1762185623024,4.98026819,166.79,166.74,0.14216157]
[1762185623348,4.98026819,166.84,166.77,0.14216157]
[1762185623535,4.98026819,166.85,166.8,9.93098926]
[1762185623731,0.06,166.91,166.8,9.93098926]
[1762185623961,0.06,166.91,166.79,20.592]
[1762185623962,4.98026819,166.85,166.82,9.93098926]
[1762185624447,4.98026819,166.83,166.82,0.14216157]
[1762185624641,4.98026819,166.83,166.78,9.93098926]
[1762185624822,0.06,166.89,166.79,0.71]
[1762185625028,4.98026819,166.81,166.79,0.71]
[1762185625222,20.592,166.9,166.8,9.93098926]
[1762185625427,4.98026819,166.84,166.8,9.93098926]
[1762185625623,20.592,166.93,166.82,9.93098926]
[1762185625933,4.98026819,166.88,166.82,9.93098926]
[1762185626152,4.98026819,166.83,166.82,10.54988926]
[1762185626346,4.98026819,166.83,166.8,9.78882769]
[1762185626640,4.98026819,166.83,166.8,0.71]
[1762185626951,4.98026819,166.9,166.77,9.78882769]
[1762185626952,4.98026819,166.84,166.81,0.71]
[1762185627365,4.98026819,166.83,166.81,0.71]
[1762185627742,4.98026819,166.83,166.77,9.78882769]
[1762185628052,20.592,166.88,166.78,0.67]
[1762185628233,4.98026819,166.82,166.79,0.14216157]
[1762185628561,0.06,166.95,166.79,9.93098926]
[1762185628874,4.98026819,166.86,166.81,9.93098926]
[1762185629235,6.04983231,166.95,166.78,9.78882769]
[1762185629236,4.98026819,166.82,166.78,9.78882769]
[1762185629441,4.98026819,166.82,166.78,10.45882769]
[1762185629634,0.06,166.98,166.8,9.78882769]
[1762185629951,4.98026819,167.0,166.81,0.14216157]
[1762185629952,4.98026819,166.89,166.81,0.14216157]
[1762185630154,4.98026819,167.0,166.83,9.93098926]
[1762185630358,4.98026819,166.95,166.87,9.93098926]
[1762185630654,6.69935413,167.08,166.87,9.93098926]
[1762185630655,4.98026819,166.98,166.87,9.93098926]
[1762185630864,4.98026819,167.02,166.92,20.592]
[1762185631151,4.98026819,167.04,166.98,0.14216157]
[1762185631360,4.98026819,167.05,166.98,0.14216157]
[1762185631538,4.98026819,166.99,166.98,0.14216157]
[1762185631742,4.98026819,167.0,166.98,0.67]
[1762185631935,4.98026819,166.99,166.91,20.592]
[1762185632132,4.98026819,166.92,166.87,9.78882769]
[1762185632328,4.98026819,166.88,166.87,9.78882769]
[1762185632559,4.98026819,166.88,166.81,0.69]
[1762185632853,4.98026819,166.88,166.81,21.282]
[1762185633036,4.98026819,166.87,166.82,10.47882769]
[1762185633448,4.98026819,166.87,166.84,9.78882769]
[1762185633637,4.98026819,166.87,166.78,64.98980693]
[1762185633638,4.98026819,166.86,166.76,50.0]
[1762185633853,20.592,166.93,166.76,50.0]
[1762185633854,0.06,166.92,166.77,50.69]
[1762185634028,4.98026819,166.88,166.77,50.69]
[1762185634237,4.98026819,166.88,166.78,10.62098926]
[1762185634536,4.98026819,166.88,166.82,9.93098926]
[1762185634862,4.98026819,166.86,166.82,9.93098926]
[1762185635031,4.98026819,166.87,166.84,9.93098926]
[1762185635358,0.06,166.93,166.84,9.93098926]
[1762185635660,4.98026819,166.87,166.84,0.14216157]
[1762185635837,4.98026819,166.88,166.85,0.69]
[1762185636032,4.98026819,166.87,166.85,0.69]
[1762185636341,4.98026819,166.87,166.79,5.99550104]
[1762185636342,4.98026819,166.86,166.76,0.69]
[1762185636529,4.98026819,166.86,166.53,25.9124461]
[1762185636530,4.98026819,166.77,166.72,0.69]
[1762185636734,4.98026819,166.76,166.72,0.69]
[1762185636952,4.98026819,166.75,166.72,0.69]
[1762185637148,4.98026819,166.77,166.72,0.69]
[1762185637352,4.98026819,166.76,166.72,0.69]
[1762185637654,4.98026819,166.77,166.72,0.69]
[1762185637861,14.76909588,166.9,166.73,9.78882769]
[1762185638035,4.98026819,166.77,166.74,0.69]
[1762185638358,4.98026819,166.78,166.75,9.78882769]
[1762185638537,4.98026819,166.79,166.75,9.78882769]
[1762185638735,4.98026819,166.78,166.76,0.14216157]
[1762185639056,4.98026819,166.81,166.78,0.14216157]
[1762185639240,4.98026819,166.82,166.8,0.14216157]
[1762185639443,20.592,166.87,166.8,0.14216157]
[1762185639759,4.98026819,166.82,166.8,0.14216157]
[1762185639961,4.98026819,166.83,166.8,0.14216157]
[1762185640461,4.98026819,166.89,166.83,0.14216157]
[1762185640831,4.98026819,166.89,166.85,0.14216157]
[1762185641236,4.98026819,166.86,166.84,9.78882769]
[1762185641539,31.56576087,166.85,166.75,9.78882769]
[1762185641742,4.98026819,166.76,166.7,0.69]
[1762185641967,4.98026819,166.73,166.7,0.69]
[1762185642136,4.98026819,166.74,166.7,0.69]
[1762185642340,4.98026819,166.71,166.67,0.69]
[1762185642540,4.98026819,166.7,166.67,0.69]
[1762185642946,20.652,166.77,166.67,0.69]
[1762185643145,4.98026819,166.73,166.65,0.1]
[1762185643443,4.98026819,166.74,166.69,0.79]
[1762185643667,4.98026819,166.73,166.7,9.78882769]
[1762185643961,4.98026819,166.74,166.71,0.83216157]
[1762185644139,4.98026819,166.73,166.71,0.83216157]
[1762185644342,0.06,166.78,166.69,0.1]
[1762185644540,4.98026819,166.7,166.69,0.1]
[1762185644782,9.96053638,166.7,166.69,0.1]
[1762185644940,10.02053638,166.7,166.65,0.1]
[1762185645284,10.02053638,166.7,166.65,0.04]
[1762185645285,4.98026819,166.66,166.65,0.04]
[1762185645572,6.00060006,166.65,166.5,0.69]
[1762185645736,6.98026818,166.7,166.48,50.0]
[1762185645737,4.98026819,166.7,166.6,0.69]
[1762185645941,20.592,166.77,166.6,0.69]
[1762185646199,4.98026819,166.69,166.61,9.93098926]
[1762185646354,4.98026819,166.73,166.65,9.93098926]
[1762185646560,1.99999999,166.89,166.69,9.93098926]
[1762185646891,4.98026819,166.76,166.69,9.93098926]
[1762185647043,4.98026819,166.73,166.71,0.14216157]
[1762185647371,4.98026819,166.72,166.71,9.93098926]
[1762185647559,20.97315435,166.88,166.74,0.14216157]
[1762185647560,5.99232981,166.88,166.74,0.14216157]
[1762185647738,4.98026819,166.75,166.73,0.69]
[1762185648240,4.98026819,166.75,166.71,0.14216157]
[1762185648241,4.98026819,166.74,166.71,0.14216157]
[1762185648441,4.98026819,166.72,166.71,0.69]
[1762185648972,4.98026819,166.72,166.66,0.69]
[1762185649164,4.98026819,166.68,166.61,9.78882769]
[1762185649361,4.98026819,166.66,166.6,0.69]
[1762185649562,4.98026819,166.64,166.6,0.69]
[1762185649746,4.98026819,166.7,166.6,0.69]
[1762185649949,4.98026819,166.61,166.6,0.69]
[1762185650154,4.98026819,166.62,166.6,0.69]
[1762185650383,25.57226819,166.7,166.6,0.69]
[1762185650665,4.98026819,166.63,166.6,0.69]
[1762185650866,4.98026819,166.62,166.6,0.69]
[1762185651049,4.98026819,166.64,166.61,9.78882769]
[1762185651250,4.98026819,166.7,166.62,0.69]
[1762185651467,4.98026819,166.66,166.63,0.14216157]
[1762185651667,4.98026819,166.64,166.59,9.88882769]
[1762185651968,4.98026819,166.63,166.6,0.69]
[1762185652470,4.98026819,166.61,166.59,0.1]
[1762185652770,25.57226819,166.7,166.61,0.14216157]
[1762185652947,4.98026819,166.65,166.61,9.93098926]
[1762185653149,4.98026819,166.66,166.63,0.14216157]
[1762185653348,4.98026819,166.65,166.63,0.14216157]
[1762185653546,9.78882769,166.76,166.64,0.69]
[1762185653857,14.98729687,166.81,166.65,9.93098926]
[1762185654050,4.98026819,166.7,166.65,9.93098926]
[1762185654246,4.98026819,166.7,166.63,0.69]
[1762185654247,4.98026819,166.66,166.63,0.69]
[1762185654557,4.98026819,166.65,166.64,0.14216157]
[1762185654754,4.98026819,166.65,166.6,10.47882769]
[1762185654951,4.98026819,166.65,166.63,0.14216157]
[1762185655274,4.98026819,166.68,166.63,0.14216157]
[1762185655462,4.98026819,166.7,166.66,0.14216157]
[1762185655770,4.98026819,166.73,166.66,0.14216157]
[1762185656000,4.98026819,166.74,166.68,9.93098926]
[1762185656176,4.98026819,166.8,166.68,9.93098926]
[1762185656354,4.98026819,166.74,166.69,0.69]
[1762185656554,4.98026819,166.8,166.69,0.69]
[1762185656555,4.98026819,166.73,166.69,0.69]
[1762185656872,4.98026819,166.75,166.7,9.93098926]
[1762185657050,4.98026819,166.76,166.72,0.14216157]
[1762185657455,4.98026819,166.73,166.66,0.69]
[1762185657790,4.98026819,166.8,166.69,0.14216157]
[1762185657791,4.98026819,166.75,166.69,0.14216157]
[1762185657954,4.98026819,166.74,166.69,0.14216157]
[1762185658162,4.98026819,166.74,166.71,0.14216157]
[1762185658483,4.98026819,166.72,166.67,0.69]
[1762185658659,4.98026819,166.72,166.68,0.14216157]
[1762185658855,20.592,166.77,166.69,0.69]
[1762185659178,4.98026819,166.71,166.69,0.69]
[1762185659358,4.98026819,166.72,166.69,0.69]
[1762185659552,20.592,166.77,166.7,0.14216157]
[1762185659755,4.98026819,166.72,166.69,0.69]
[1762185660153,4.98026819,166.8,166.69,0.69]
[1762185660461,7.70306557,166.82,166.74,0.14216157]
[1762185660780,7.70306557,166.79,166.76,0.14216157]
[1762185660963,7.70306557,166.92,166.76,9.93098926]
[1762185661165,15.17633738,166.93,166.77,0.69]
[1762185661477,7.70306557,166.81,166.78,0.14216157]
[1762185661792,9.98882769,166.93,166.78,0.14216157]
[1762185661963,9.98882769,166.93,166.79,0.69]
[1762185661964,7.70306557,166.83,166.79,0.69]
[1762185662152,13.69395941,166.92,166.79,0.69]
[1762185662358,7.70306557,166.84,166.79,0.69]
[1762185662580,7.70306557,166.8,166.76,0.68]
[1762185662755,7.70306557,166.77,166.72,0.68]
[1762185662955,7.70306557,166.77,166.61,15.005006]
[1762185662956,7.70306557,166.73,166.68,0.68]
[1762185663190,20.592,166.77,166.6,50.0]
[1762185663378,20.592,166.77,166.59,0.1]
[1762185663379,7.70306557,166.68,166.59,0.1]
[1762185663676,20.592,166.74,166.59,0.1]
[1762185663677,7.70306557,166.67,166.59,0.1]
[1762185663869,11.78882768,166.78,166.59,0.1]
[1762185663870,14.98711108,166.81,166.6,0.68]
[1762185664071,7.70306557,166.73,166.6,0.68]
[1762185664265,1.99999999,166.86,166.62,0.14216157]
[1762185664578,7.70306557,166.81,166.72,20.592]
[1762185664782,5.99197075,166.89,166.73,9.93098926]
[1762185664783,7.70306557,166.83,166.73,9.93098926]
[1762185664982,7.70306557,166.79,166.73,0.82216157]
[1762185665169,11.78882768,166.88,166.7,20.592]
[1762185665361,7.70306557,166.76,166.64,50.0]
[1762185665561,7.70306557,166.75,166.7,0.68]
[1762185665868,7.70306557,166.78,166.7,0.68]
[1762185666075,7.70306557,166.75,166.7,0.68]
[1762185666274,7.70306557,166.72,166.66,0.68]
[1762185666460,7.70306557,166.72,166.67,0.68]
[1762185666662,7.70306557,166.7,166.59,0.1]
[1762185666862,7.70306557,166.65,166.6,0.68]
[1762185667088,7.70306557,166.66,166.6,0.68]
[1762185667463,7.70306557,166.65,166.6,0.68]
[1762185667662,7.70306557,166.62,166.59,0.1]
[1762185668069,20.592,166.65,166.59,0.1]
[1762185668369,7.70306557,166.6,166.59,0.1]
[1762185669174,20.592,166.57,166.48,0.68]
[1762185669370,20.592,166.57,166.45,0.68]
[1762185669580,4.47448228,166.74,166.49,0.68]
[1762185669763,9.78882769,166.69,166.5,15.93699526]
[1762185669959,24.78133143,166.75,166.54,9.93098926]
[1762185670279,7.70306557,166.63,166.56,0.14216157]
[1762185670587,9.78882769,166.74,166.58,0.14216157]
[1762185670881,7.70306557,166.65,166.58,0.14216157]
[1762185671070,7.70306557,166.64,166.59,0.68]
[1762185671271,7.70306557,166.64,166.55,0.68]
[1762185671272,7.70306557,166.6,166.55,0.68]
[1762185671474,7.70306557,166.56,166.49,9.78882769]
[1762185671793,20.592,166.64,166.49,10.46882769]
[1762185672082,7.70306557,166.58,166.52,0.14216157]
[1762185672382,7.70306557,166.58,166.5,0.68]
[1762185672383,7.70306557,166.53,166.5,0.68]
[1762185672579,7.70306557,166.52,166.47,0.68]
[1762185672785,7.70306557,166.53,166.47,0.68]
[1762185672990,7.70306557,166.55,166.47,0.68]
[1762185673163,28.29506557,166.49,166.44,0.1]
[1762185673364,7.70306557,166.56,166.44,0.1]
[1762185673365,7.70306557,166.5,166.45,0.68]
[1762185674070,7.70306557,166.51,166.45,0.68]
[1762185674271,7.70306557,166.48,166.45,0.68]
[1762185674472,20.592,166.53,166.45,0.68]
[1762185674690,6.00168047,166.62,166.46,9.78882769]
[1762185674866,5.9984404,166.71,166.55,20.592]
[1762185675068,7.70306557,166.65,166.53,9.78882769]
[1762185675267,7.70306557,166.59,166.54,0.14216157]
[1762185675464,7.70306557,166.58,166.53,0.68]
[1762185675665,7.70306557,166.58,166.47,50.0]
[1762185675666,7.70306557,166.57,166.54,0.68]
[1762185675872,13.70286677,166.68,166.55,0.14216157]
[1762185676071,7.70306557,166.61,166.55,0.14216157]
[1762185676384,28.70166686,166.68,166.53,0.14216157]
[1762185676385,8.60538127,166.57,166.53,0.14216157]
[1762185676564,20.99860129,166.68,166.56,0.68]
[1762185676762,8.60538127,166.59,166.56,0.68]
[1762185676964,8.60538127,166.6,166.56,0.68]
[1762185677265,8.60538127,166.6,166.45,50.0]
[1762185677266,20.592,166.65,166.43,50.0]
[1762185677582,8.60538127,166.6,166.45,50.0]
[1762185677783,8.60538127,166.62,166.49,50.0]
[1762185678082,8.60538127,166.64,166.51,50.0]
[1762185678288,3.56839743,166.63,166.51,50.0]
[1762185678479,8.60538127,166.65,166.51,50.0]
[1762185678795,5.15448228,166.76,166.53,100.0]
[1762185678963,3.57221377,166.75,166.55,50.0]
[1762185679164,3.57221377,166.74,166.61,30.52298926]
[1762185679383,3.57221377,166.73,166.61,80.52298926]
[1762185679567,5.99448507,166.82,166.67,9.78882769]
[1762185679768,8.60538127,166.76,166.7,0.14216157]
[1762185680066,3.57717794,166.75,166.7,0.14216157]
[1762185680392,8.60538127,166.76,166.7,0.14216157]
[1762185680685,3.58065633,166.75,166.7,0.14216157]
[1762185680884,8.60538127,166.78,166.7,0.82216157]
[1762185681185,3.5810978,166.77,166.72,0.14216157]
[1762185681396,4.47448228,166.85,166.72,0.14216157]
[1762185681581,8.60538127,166.79,166.74,0.14216157]
[1762185681778,8.60538127,166.81,166.74,0.82216157]
[1762185681974,12.19049237,166.8,166.74,0.82216157]
[1762185682183,8.60538127,166.77,166.63,100.0]
[1762185682369,8.60538127,166.77,166.71,9.93098926]
[1762185682572,5.99282485,166.87,166.73,9.93098926]
[1762185682768,8.60538127,166.82,166.73,9.93098926]
[1762185682984,8.60538127,166.78,166.73,10.61098926]
[1762185683181,8.60538127,166.74,166.69,9.78882769]
[1762185683506,25.06648228,166.85,166.68,10.46882769]
[1762185683507,8.60538127,166.78,166.68,10.46882769]
[1762185683674,3.58428503,166.77,166.69,10.46882769]
[1762185683874,20.592,166.8,166.7,0.14216157]
[1762185684189,8.60538127,166.83,166.72,0.14216157]
[1762185684392,8.60538127,166.83,166.74,9.93098926]
[1762185684393,3.58645292,166.82,166.74,9.93098926]
[1762185684566,3.58645292,166.81,166.74,9.93098926]
[1762185684767,8.60538127,166.98,166.74,9.93098926]
[1762185684768,8.60538127,166.88,166.78,9.78882769]
[1762185684974,3.5886362,166.87,166.79,0.14216157]
[1762185685192,3.5886362,166.86,166.81,0.14216157]
[1762185685493,8.60538127,166.89,166.81,0.14216157]
[1762185685687,12.19345482,166.88,166.81,0.14216157]
[1762185686002,0.2,166.93,166.82,0.68]
[1762185686170,3.59059936,166.92,166.83,9.93098926]
[1762185686372,0.2,166.93,166.83,9.93098926]
[1762185686373,3.59059936,166.91,166.83,9.93098926]
[1762185686573,0.2,166.93,166.85,9.93098926]
[1762185687005,0.2,166.93,166.9,20.592]
[1762185687306,8.60538127,166.99,166.91,9.93098926]
[1762185687484,3.5848256,166.98,166.91,10.65098926]
[1762185687678,3.5848256,166.97,166.91,10.65098926]
[1762185687884,0.2,167.01,166.91,9.93098926]
[1762185688111,8.60538127,166.99,166.93,0.14216157]
[1762185688290,3.58509685,166.98,166.93,0.14216157]
[1762185688491,3.58509685,166.98,166.85,50.0]
[1762185688492,3.57914985,166.97,166.87,0.14216157]
[1762185688801,3.57914985,166.96,166.87,9.93098926]
[1762185688979,8.80538127,167.01,166.91,9.93098926]
[1762185689301,12.1845291,167.0,166.91,9.93098926]
[1762185689512,3.57914783,166.99,166.95,0.14216157]
[1762185689814,0.2,167.01,166.95,0.14216157]
[1762185689815,3.57914783,166.98,166.95,0.14216157]
[1762185689978,0.2,167.01,166.91,20.592]
[1762185690312,3.57539197,167.0,166.93,0.14216157]
[1762185690490,0.2,167.01,166.82,50.0]
[1762185690491,8.60538127,166.95,166.82,50.0]
[1762185690689,3.57539197,166.99,166.8,65.46]
[1762185690690,8.60538127,166.93,166.8,65.46]
[1762185691035,8.60538127,166.99,166.86,9.93098926]
[1762185691180,8.60538127,166.98,166.9,9.93098926]
[1762185691510,8.60538127,166.94,166.9,0.14216157]
[1762185691691,8.60538127,166.92,166.82,9.78882769]
[1762185691897,8.60538127,166.88,166.75,100.0]
[1762185692099,0.71,166.92,166.76,20.592]
[1762185692415,8.60538127,166.82,166.76,0.72]
[1762185692580,8.60538127,166.82,166.77,0.67]
[1762185692777,5.13448228,166.96,166.81,20.592]
[1762185692981,3.55951512,166.95,166.86,9.93098926]
[1762185693177,8.60538127,166.91,166.86,9.93098926]
[1762185693406,8.60538127,166.91,166.87,0.67]
[1762185693620,8.60538127,166.89,166.88,0.14216157]
[1762185693781,8.60538127,166.91,166.88,0.14216157]
[1762185693977,8.60538127,166.91,166.88,0.81216157]
[1762185694178,8.60538127,166.93,166.89,9.78882769]
[1762185694396,8.60538127,166.91,166.89,0.14216157]
[1762185694598,8.60538127,166.91,166.89,0.81216157]
[1762185695015,8.60538127,166.93,166.89,0.81216157]
[1762185695524,0.2,167.01,166.9,9.78882769]
[1762185695737,0.2,167.01,166.98,9.78882769]
[1762185696032,0.2,167.01,166.98,0.14216157]
[1762185696201,0.2,167.01,167.0,9.93098926]
[1762185696518,8.60538127,167.09,167.04,9.93098926]
[1762185696929,0.2,167.13,167.08,20.592]
[1762185697213,0.2,167.13,167.04,9.93098926]
[1762185697214,0.2,167.13,167.1,0.14216157]
[1762185697418,0.2,167.13,167.12,0.67]
[1762185697590,0.2,167.13,167.06,0.14216157]
[1762185697997,8.80538127,167.13,167.08,0.14216157]
[1762185698499,8.60538127,167.11,167.08,0.14216157]
[1762185698699,8.60538127,167.09,167.03,0.67]
[1762185698912,0.86,167.13,167.04,0.14216157]
[1762185698913,8.60538127,167.07,167.04,0.14216157]
[1762185699225,0.86,167.13,166.92,1.99999999]
[1762185699226,8.60538127,167.05,166.92,1.99999999]
[1762185699425,21.252,167.1,166.98,0.67]